[Event "28th WSCC Open 50 2018"]
[Site "Bled"]
[Date "2018.11.29"]
[Round "11"]
[White "Biro, Sandor"]
[Black "Berend, Fred"]
[Result "1-0"]
[ECO "B22"]
[WhiteElo "2191"]
[BlackElo "2369"]
[Annotator "NA RC"]
[PlyCount "100"]
[EventDate "2018.11.17"]
[EventType "swiss"]
[EventCountry "SLO"]
[SourceTitle "playchess.com"]
[Source "ChessBase"]
[SourceQuality "1"]
[TimeControl "40/5400+30:1800+30"]

1. e4 c5 2. Nf3 e6 3. c3 Nf6 4. e5 Nd5 5. d4 cxd4 6. cxd4 b6 7. Nc3 Nxc3 8. bxc3 Qc7 9. Bd2 Be7 10. Bd3 Ba6 11. c4 {B22: Sicilian: 2 c3} (11. Bxa6 Nxa6 12. Qe2 Nb8 13. c4 Qb7 14. O-O O-O 15. a4 d6 16. Bb4 dxe5 17. Bxe7 Qxe7 18. Nxe5 Nd7 19. a5 Nxe5 20. Qxe5 {½-½ (99) Smerdon,D (2525)-Dominguez Perez,L (2719) Khanty-Mansiysk 2009}) 11... Bxc4 12. Rc1 b5 13. O-O O-O {[#]} 14. Re1 $146 ({Predecessor:} 14. Ng5 $1 $16 Bxg5 15. Bxg5 f5 16. exf6 gxf6 17. Bxh7+ Kf7 18. Qh5+ Ke7 {½-½ (48) Adnoy,H (2185)-Gabrielsen,S (2286) Gausdal 2001}) 14... Nc6 15. Bxc4 bxc4 16. Rxc4 d5 (16... Rfb8 $11) 17. exd6 $1 Qxd6 18. Qc2 Rac8 19. Rc1 Nb4 20. Qa4 Rxc4 21. Rxc4 Nd5 22. Qxa7 Rb8 23. g3 Qd8 24. a4 Ra8 25. Qb7 Rb8 26. Qc6 h6 27. a5 g5 28. Ne5 Rb2 29. Rc2 Rb1+ 30. Kg2 Kg7 31. Qc8 Ra1 32. Qxd8 Bxd8 33. Nc6 Bf6 34. Rb2 Ra4 35. Rb5 Ra2 36. Bc1 Ra4 37. Bb2 g4 38. Nb8 Bd8 39. Nc6 Bc7 40. Bc1 h5 41. h3 Bd6 42. Bb2 Kg6 $11 43. hxg4 hxg4 44. Nd8 Bc7 45. Nb7 Ra2 46. Kf1 Bb8 47. Ke1 Ba7 48. Nd8 Ra4 49. Nc6 Rc4 50. Nxa7 Rc7 1-0